[Event "December 19 Early 2023"]
[Site "https://www.chess.com"]
[Date "2023.12.19"]
[Round "9"]
[White "Shadhursshaan R"]
[Black "Barwinska, Ewa"]
[Result "1-0"]
[Board "142"]
[TimeControl "180+1"]
[WhiteFideId "45024138"]
[BlackFideId "21833761"]
[WhiteElo "1760"]
[BlackElo "1879"]
[WhiteTeam "IND"]
[BlackTeam "POL"]
[WhiteClock "0:01:24"]
[BlackClock "0:00:08"]

1. d4 {[%clk 0:02:38]}  b6 {[%clk 0:02:57]} 2. e4 {[%clk 0:02:34]}  Bb7 {[%clk 0:02:57]} 3. Bd3 {[%clk 0:02:35]}  Nf6 {[%clk 0:02:57]} 4. Qe2 {[%clk 0:02:36]}  e6 {[%clk 0:02:51]} 5. c4 {[%clk 0:02:34]}  c5 {[%clk 0:02:47]} 6. d5 {[%clk 0:02:35]}  exd5 {[%clk 0:02:44]} 7. exd5+ {[%clk 0:02:36]}  Qe7 {[%clk 0:02:45]} 8. Nc3 {[%clk 0:02:35]}  d6 {[%clk 0:02:41]} 9. Bf4 {[%clk 0:02:29]}  Nbd7 {[%clk 0:02:36]} 10. Nb5 {[%clk 0:02:28]}  Qxe2+ {[%clk 0:02:01]} 11. Nxe2 {[%clk 0:02:29]}  O-O-O {[%clk 0:01:43]} 12. Nxd6+ {[%clk 0:02:19]}  Bxd6 {[%clk 0:01:43]} 13. Bxd6 {[%clk 0:02:20]}  Rhe8 {[%clk 0:01:39]} 14. O-O-O {[%clk 0:02:18]}  Ne4 {[%clk 0:01:35]} 15. Bxe4 {[%clk 0:02:02]}  Rxe4 {[%clk 0:01:36]} 16. Nc3 {[%clk 0:01:59]}  Rxc4 {[%clk 0:01:26]} 17. Kb1 {[%clk 0:02:00]}  a6 {[%clk 0:00:52]} 18. Rhe1 {[%clk 0:01:50]}  Rd4 {[%clk 0:00:43]} 19. Rxd4 {[%clk 0:01:48]}  cxd4 {[%clk 0:00:44]} 20. Na4 {[%clk 0:01:44]}  Bxd5 {[%clk 0:00:41]} 21. Rc1+ {[%clk 0:01:35]}  Kb7 {[%clk 0:00:17]} 22. Rc7+ {[%clk 0:01:35]}  Ka8 {[%clk 0:00:17]} 23. Be7 {[%clk 0:01:28]}  Be4+ {[%clk 0:00:13]} 24. Kc1 {[%clk 0:01:23]}  Re8 {[%clk 0:00:07]} 25. Rxd7 {[%clk 0:01:23]}  Bc6 {[%clk 0:00:07]} 26. Nxb6+ {[%clk 0:01:24]}  Kb8 {[%clk 0:00:08]} 27. Bd6# {[%clk 0:01:24]} 1-0

[Event "December 19 Early 2023"]
[Site "https://www.chess.com"]
[Date "2023.12.19"]
[Round "9"]
[White "Semenova, Alina"]
[Black "Leve, Nitai"]
[Result "1-0"]
[Board "143"]
[TimeControl "180+1"]
[WhiteFideId "24113875"]
[BlackFideId "2006898"]
[WhiteElo "1827"]
[BlackElo "2144"]
[WhiteTeam "RUS"]
[BlackTeam "USA"]
[WhiteClock "0:01:37"]
[BlackClock "0:00:01"]

1. e4 {[%clk 0:03:00]}  d5 {[%clk 0:02:59]} 2. exd5 {[%clk 0:02:58]}  Nf6 {[%clk 0:02:51]} 3. d4 {[%clk 0:02:58]}  Bg4 {[%clk 0:02:48]} 4. Be2 {[%clk 0:02:57]}  Bxe2 {[%clk 0:02:48]} 5. Nxe2 {[%clk 0:02:58]}  Qxd5 {[%clk 0:02:48]} 6. O-O {[%clk 0:02:58]}  Nc6 {[%clk 0:02:49]} 7. Nbc3 {[%clk 0:02:58]}  Qf5 {[%clk 0:02:49]} 8. Be3 {[%clk 0:02:47]}  O-O-O {[%clk 0:02:39]} 9. Na4 {[%clk 0:02:40]}  e5 {[%clk 0:02:37]} 10. c3 {[%clk 0:02:31]}  Bd6 {[%clk 0:02:10]} 11. Ng3 {[%clk 0:02:28]}  Qg6 {[%clk 0:02:06]} 12. d5 {[%clk 0:02:28]}  Ne7 {[%clk 0:01:53]} 13. c4 {[%clk 0:02:26]}  h5 {[%clk 0:01:50]} 14. Bxa7 {[%clk 0:02:24]}  h4 {[%clk 0:01:50]} 15. Ne2 {[%clk 0:02:23]}  h3 {[%clk 0:01:45]} 16. g3 {[%clk 0:02:23]}  Qe4 {[%clk 0:01:24]} 17. f3 {[%clk 0:02:22]}  Qxc4 {[%clk 0:01:24]} 18. Rc1 {[%clk 0:02:20]}  Bc5+ {[%clk 0:01:10]} 19. Bxc5 {[%clk 0:02:16]}  Qxd5 {[%clk 0:01:09]} 20. Bxe7 {[%clk 0:02:10]}  Qa5 {[%clk 0:01:03]} 21. Bxd8 {[%clk 0:02:08]}  Rxd8 {[%clk 0:01:04]} 22. Qc2 {[%clk 0:02:03]}  c6 {[%clk 0:01:03]} 23. Nac3 {[%clk 0:02:02]}  Nd5 {[%clk 0:01:02]} 24. Nxd5 {[%clk 0:02:02]}  Rxd5 {[%clk 0:00:57]} 25. Nc3 {[%clk 0:01:57]}  Rd4 {[%clk 0:00:46]} 26. Rfd1 {[%clk 0:01:54]}  Qb6 {[%clk 0:00:06]} 27. Rxd4 {[%clk 0:01:40]}  exd4 {[%clk 0:00:07]} 28. Ne4 {[%clk 0:01:39]}  d3+ {[%clk 0:00:06]} 29. Qf2 {[%clk 0:01:39]}  Qb4 {[%clk 0:00:03]} 30. Rd1 {[%clk 0:01:37]}  Qc4 {[%clk 0:00:01]} 31. Nd6+ {[%clk 0:01:37]} 1-0

[Event "December 19 Early 2023"]
[Site "https://www.chess.com"]
[Date "2023.12.19"]
[Round "9"]
[White "Feliz Dotel, Dewar Bienvenido"]
[Black "Bach Ngoc Thuy Duong"]
[Result "0-1"]
[Board "144"]
[TimeControl "180+1"]
[WhiteFideId "6402801"]
[BlackFideId "12408956"]
[WhiteElo "2069"]
[BlackElo "1970"]
[WhiteTeam "DOM"]
[BlackTeam "VIE"]
[WhiteClock "0:00:00"]
[BlackClock "0:00:01"]

1. Nf3 {[%clk 0:02:58]}  d5 {[%clk 0:02:54]} 2. g3 {[%clk 0:02:58]}  Nf6 {[%clk 0:02:53]} 3. Bg2 {[%clk 0:02:58]}  c6 {[%clk 0:02:54]} 4. c4 {[%clk 0:02:58]}  e6 {[%clk 0:02:44]} 5. b3 {[%clk 0:02:56]}  Be7 {[%clk 0:02:44]} 6. O-O {[%clk 0:02:56]}  O-O {[%clk 0:02:44]} 7. Bb2 {[%clk 0:02:56]}  b6 {[%clk 0:02:45]} 8. d3 {[%clk 0:02:56]}  Bb7 {[%clk 0:02:45]} 9. Nc3 {[%clk 0:02:53]}  Nbd7 {[%clk 0:02:45]} 10. e4 {[%clk 0:02:52]}  Rc8 {[%clk 0:02:38]} 11. cxd5 {[%clk 0:02:41]}  cxd5 {[%clk 0:02:37]} 12. e5 {[%clk 0:02:41]}  Ne8 {[%clk 0:02:37]} 13. d4 {[%clk 0:02:41]}  Ba6 {[%clk 0:02:26]} 14. Re1 {[%clk 0:02:40]}  Bb4 {[%clk 0:02:25]} 15. Rc1 {[%clk 0:02:34]}  Qe7 {[%clk 0:02:23]} 16. Bf1 {[%clk 0:02:17]}  Bxf1 {[%clk 0:02:18]} 17. Kxf1 {[%clk 0:02:17]}  Nc7 {[%clk 0:02:05]} 18. Re2 {[%clk 0:02:09]}  f6 {[%clk 0:01:48]} 19. exf6 {[%clk 0:02:05]}  Qxf6 {[%clk 0:01:43]} 20. Ne5 {[%clk 0:01:46]}  Nxe5 {[%clk 0:01:41]} 21. dxe5 {[%clk 0:01:46]}  Qf3 {[%clk 0:01:40]} 22. Kg1 {[%clk 0:01:29]}  Bc5 {[%clk 0:01:39]} 23. Qf1 {[%clk 0:01:19]}  Na6 {[%clk 0:01:08]} 24. Qg2 {[%clk 0:01:03]}  Qg4 {[%clk 0:00:41]} 25. h3 {[%clk 0:01:00]}  Qg5 {[%clk 0:00:41]} 26. Kh2 {[%clk 0:00:53]}  Nb4 {[%clk 0:00:35]} 27. f4 {[%clk 0:00:50]}  Qh6 {[%clk 0:00:34]} 28. Rd1 {[%clk 0:00:12]}  d4 {[%clk 0:00:25]} 29. Ne4 {[%clk 0:00:11]}  d3 {[%clk 0:00:25]} 30. Red2 {[%clk 0:00:10]}  Be3 {[%clk 0:00:25]} 31. Rxd3 {[%clk 0:00:07]}  Rc2 {[%clk 0:00:06]} 32. R3d2 {[%clk 0:00:05]}  Bxd2 {[%clk 0:00:06]} 33. Rxd2 {[%clk 0:00:05]}  Rfc8 {[%clk 0:00:06]} 34. Ba3 {[%clk 0:00:04]}  Rxd2 {[%clk 0:00:04]} 35. Qxd2 {[%clk 0:00:05]}  Nd5 {[%clk 0:00:05]} 36. Nd6 {[%clk 0:00:02]}  Rd8 {[%clk 0:00:04]} 37. Qc2 {[%clk 0:00:00]}  Qg6 {[%clk 0:00:01]} 0-1

[Event "December 19 Early 2023"]
[Site "https://www.chess.com"]
[Date "2023.12.19"]
[Round "9"]
[White "Igel2023"]
[Black "Vigoa Apecheche, Yanira"]
[Result "0-1"]
[Board "147"]
[TimeControl "180+1"]
[BlackFideId "3507041"]
[WhiteElo "2252"]
[BlackElo "2276"]
[BlackTeam "USA"]
[WhiteClock "0:00:16"]
[BlackClock "0:00:47"]

1. e4 {[%clk 0:03:00]}  c5 {[%clk 0:02:59]} 2. Nf3 {[%clk 0:02:59]}  Nc6 {[%clk 0:02:58]} 3. Bb5 {[%clk 0:02:59]}  g6 {[%clk 0:02:58]} 4. O-O {[%clk 0:02:59]}  Bg7 {[%clk 0:02:57]} 5. Re1 {[%clk 0:02:59]}  Nf6 {[%clk 0:02:58]} 6. e5 {[%clk 0:02:58]}  Nd5 {[%clk 0:02:58]} 7. Nc3 {[%clk 0:02:59]}  Nc7 {[%clk 0:02:57]} 8. Bxc6 {[%clk 0:02:59]}  dxc6 {[%clk 0:02:55]} 9. h3 {[%clk 0:02:57]}  O-O {[%clk 0:02:54]} 10. d3 {[%clk 0:02:56]}  b6 {[%clk 0:02:53]} 11. a4 {[%clk 0:02:54]}  a5 {[%clk 0:02:53]} 12. Be3 {[%clk 0:02:38]}  Nd5 {[%clk 0:02:51]} 13. Bd2 {[%clk 0:02:28]}  h6 {[%clk 0:02:47]} 14. Ne4 {[%clk 0:02:02]}  Kh7 {[%clk 0:02:39]} 15. c4 {[%clk 0:01:48]}  Nc7 {[%clk 0:02:21]} 16. Bc3 {[%clk 0:01:48]}  Ne6 {[%clk 0:02:18]} 17. d4 {[%clk 0:01:32]}  cxd4 {[%clk 0:02:15]} 18. Nxd4 {[%clk 0:01:33]}  Nxd4 {[%clk 0:02:12]} 19. Qxd4 {[%clk 0:01:31]}  Qxd4 {[%clk 0:02:05]} 20. Bxd4 {[%clk 0:01:32]}  c5 {[%clk 0:02:05]} 21. Bc3 {[%clk 0:01:32]}  Bb7 {[%clk 0:02:06]} 22. e6 {[%clk 0:01:25]}  f5 {[%clk 0:01:57]} 23. Bxg7 {[%clk 0:01:22]}  Kxg7 {[%clk 0:01:58]} 24. Nc3 {[%clk 0:01:22]}  Rad8 {[%clk 0:01:55]} 25. Rad1 {[%clk 0:01:21]}  Rd4 {[%clk 0:01:55]} 26. Rxd4 {[%clk 0:01:20]}  cxd4 {[%clk 0:01:55]} 27. Nb5 {[%clk 0:01:20]}  Rd8 {[%clk 0:01:54]} 28. f3 {[%clk 0:01:07]}  Ba6 {[%clk 0:01:41]} 29. Kf2 {[%clk 0:01:03]}  Bxb5 {[%clk 0:01:36]} 30. axb5 {[%clk 0:01:02]}  Kf6 {[%clk 0:01:34]} 31. b3 {[%clk 0:00:57]}  Rd6 {[%clk 0:01:28]} 32. f4 {[%clk 0:00:47]}  Rxe6 {[%clk 0:01:25]} 33. Rd1 {[%clk 0:00:47]}  Rd6 {[%clk 0:01:25]} 34. Ke2 {[%clk 0:00:46]}  e5 {[%clk 0:01:21]} 35. fxe5+ {[%clk 0:00:47]}  Kxe5 {[%clk 0:01:21]} 36. Kd3 {[%clk 0:00:48]}  Kf4 {[%clk 0:01:21]} 37. Rd2 {[%clk 0:00:34]}  Kg3 {[%clk 0:01:20]} 38. Re2 {[%clk 0:00:34]}  g5 {[%clk 0:01:16]} 39. c5 {[%clk 0:00:25]}  bxc5 {[%clk 0:01:15]} 40. Kc4 {[%clk 0:00:26]}  d3 {[%clk 0:01:14]} 41. Rd2 {[%clk 0:00:26]}  Kf4 {[%clk 0:01:03]} 42. Rxd3 {[%clk 0:00:24]}  Rxd3 {[%clk 0:00:50]} 43. Kxd3 {[%clk 0:00:25]}  Ke5 {[%clk 0:00:51]} 44. Kc4 {[%clk 0:00:24]}  Kd6 {[%clk 0:00:51]} 45. b6 {[%clk 0:00:23]}  Kc6 {[%clk 0:00:51]} 46. b7 {[%clk 0:00:24]}  Kxb7 {[%clk 0:00:51]} 47. Kxc5 {[%clk 0:00:25]}  h5 {[%clk 0:00:49]} 48. h4 {[%clk 0:00:18]}  gxh4 {[%clk 0:00:47]} 49. Kd5 {[%clk 0:00:17]}  Kb6 {[%clk 0:00:44]} 50. Ke5 {[%clk 0:00:17]}  Kb5 {[%clk 0:00:44]} 51. Kxf5 {[%clk 0:00:17]}  Kb4 {[%clk 0:00:45]} 52. Kg5 {[%clk 0:00:17]}  Kxb3 {[%clk 0:00:45]} 53. Kxh4 {[%clk 0:00:15]}  a4 {[%clk 0:00:46]} 54. Kxh5 {[%clk 0:00:16]}  a3 {[%clk 0:00:46]} 55. g4 {[%clk 0:00:17]}  a2 {[%clk 0:00:47]} 56. g5 {[%clk 0:00:18]}  a1=Q {[%clk 0:00:47]} 57. g6 {[%clk 0:00:16]}  Qg7 {[%clk 0:00:47]} 0-1

[Event "December 19 Early 2023"]
[Site "https://www.chess.com"]
[Date "2023.12.19"]
[Round "9"]
[White "Cramling Bellon, Anna"]
[Black "Obon Temprano, Sergi"]
[Result "0-1"]
[Board "150"]
[TimeControl "180+1"]
[WhiteFideId "32009232"]
[BlackFideId "2226545"]
[WhiteElo "1976"]
[BlackElo "2135"]
[WhiteTeam "SWE"]
[BlackTeam "ESP"]
[WhiteClock "0:00:00"]
[BlackClock "0:01:00"]

1. d4 {[%clk 0:02:54]}  d5 {[%clk 0:02:59]} 2. c4 {[%clk 0:02:48]}  c6 {[%clk 0:03:00]} 3. Nc3 {[%clk 0:02:45]}  Nf6 {[%clk 0:03:00]} 4. Nf3 {[%clk 0:02:44]}  e6 {[%clk 0:03:00]} 5. e3 {[%clk 0:02:42]}  Nbd7 {[%clk 0:03:00]} 6. Bd3 {[%clk 0:02:43]}  dxc4 {[%clk 0:02:59]} 7. Bxc4 {[%clk 0:02:43]}  b5 {[%clk 0:03:00]} 8. Bd3 {[%clk 0:02:44]}  a6 {[%clk 0:03:00]} 9. e4 {[%clk 0:02:44]}  c5 {[%clk 0:03:00]} 10. e5 {[%clk 0:02:40]}  cxd4 {[%clk 0:02:59]} 11. Nxb5 {[%clk 0:02:28]}  axb5 {[%clk 0:02:59]} 12. exf6 {[%clk 0:02:28]}  gxf6 {[%clk 0:02:57]} 13. O-O {[%clk 0:02:20]}  Qb6 {[%clk 0:02:53]} 14. Qe2 {[%clk 0:02:09]}  Bb7 {[%clk 0:02:52]} 15. Bxb5 {[%clk 0:02:07]}  Rg8 {[%clk 0:02:46]} 16. Bf4 {[%clk 0:01:43]}  Bd6 {[%clk 0:02:42]} 17. Bg3 {[%clk 0:01:10]}  f5 {[%clk 0:02:27]} 18. Bxd7+ {[%clk 0:00:57]}  Kxd7 {[%clk 0:02:24]} 19. Ne5+ {[%clk 0:00:35]}  Ke7 {[%clk 0:02:09]} 20. Nc4 {[%clk 0:00:30]}  Ba6 {[%clk 0:01:42]} 21. Bxd6+ {[%clk 0:00:06]}  Qxd6 {[%clk 0:01:35]} 22. Nxd6 {[%clk 0:00:05]}  Bxe2 {[%clk 0:01:34]} 23. Rfe1 {[%clk 0:00:04]}  Kxd6 {[%clk 0:01:28]} 24. Rxe2 {[%clk 0:00:04]}  e5 {[%clk 0:01:26]} 25. f4 {[%clk 0:00:03]}  f6 {[%clk 0:01:26]} 26. fxe5+ {[%clk 0:00:02]}  fxe5 {[%clk 0:01:26]} 27. Rf1 {[%clk 0:00:02]}  Rgf8 {[%clk 0:01:21]} 28. a3 {[%clk 0:00:02]}  d3 {[%clk 0:01:14]} 29. Rd2 {[%clk 0:00:02]}  e4 {[%clk 0:01:13]} 30. Rc1 {[%clk 0:00:01]}  Rac8 {[%clk 0:01:12]} 31. Rxc8 {[%clk 0:00:01]}  Rxc8 {[%clk 0:01:11]} 32. Kf2 {[%clk 0:00:02]}  Ke5 {[%clk 0:01:07]} 33. g3 {[%clk 0:00:02]}  Kd4 {[%clk 0:01:06]} 34. Ke1 {[%clk 0:00:01]}  e3 {[%clk 0:01:02]} 35. Rd1 {[%clk 0:00:01]}  Rc2 {[%clk 0:01:00]} 36. b4 {[%clk 0:00:00]}  Rxh2 {[%clk 0:01:00]} 0-1

[Event "December 19 Early 2023"]
[Site "https://www.chess.com"]
[Date "2023.12.19"]
[Round "9"]
[White "Kiseleva, Arina"]
[Black "Zepeda Berlanga, Jan Enrique"]
[Result "1-0"]
[Board "161"]
[TimeControl "180+1"]
[WhiteFideId "4164989"]
[BlackFideId "5132355"]
[WhiteElo "1740"]
[BlackElo "1680"]
[WhiteTeam "RUS"]
[BlackTeam "MEX"]
[WhiteClock "0:00:35"]
[BlackClock "0:00:27"]

1. d4 {[%clk 0:03:00]}  Nf6 {[%clk 0:02:59]} 2. Nf3 {[%clk 0:02:58]}  e6 {[%clk 0:02:51]} 3. e3 {[%clk 0:02:57]}  c5 {[%clk 0:02:49]} 4. Bd3 {[%clk 0:02:56]}  Nc6 {[%clk 0:02:47]} 5. O-O {[%clk 0:02:55]}  Be7 {[%clk 0:02:45]} 6. b3 {[%clk 0:02:54]}  cxd4 {[%clk 0:02:29]} 7. exd4 {[%clk 0:02:51]}  b6 {[%clk 0:02:25]} 8. Bb2 {[%clk 0:02:43]}  O-O {[%clk 0:02:26]} 9. a3 {[%clk 0:02:41]}  Bb7 {[%clk 0:02:19]} 10. Nbd2 {[%clk 0:02:30]}  d5 {[%clk 0:02:18]} 11. Re1 {[%clk 0:02:25]}  h6 {[%clk 0:02:02]} 12. Ne5 {[%clk 0:02:22]}  Nxe5 {[%clk 0:01:55]} 13. dxe5 {[%clk 0:02:22]}  Nd7 {[%clk 0:01:56]} 14. Qg4 {[%clk 0:02:13]}  Re8 {[%clk 0:01:50]} 15. Re3 {[%clk 0:02:10]}  Bg5 {[%clk 0:01:43]} 16. f4 {[%clk 0:02:08]}  Bh4 {[%clk 0:01:40]} 17. Rh3 {[%clk 0:02:05]}  Be7 {[%clk 0:01:28]} 18. Rxh6 {[%clk 0:02:01]}  Nf8 {[%clk 0:01:18]} 19. Rh3 {[%clk 0:01:57]}  f5 {[%clk 0:01:13]} 20. exf6 {[%clk 0:01:26]}  Bxf6 {[%clk 0:01:12]} 21. Bxf6 {[%clk 0:01:12]}  Qxf6 {[%clk 0:01:12]} 22. Re1 {[%clk 0:01:06]}  e5 {[%clk 0:01:09]} 23. fxe5 {[%clk 0:00:58]}  Rxe5 {[%clk 0:01:08]} 24. Rf1 {[%clk 0:00:57]}  Qg5 {[%clk 0:00:39]} 25. Qxg5 {[%clk 0:00:39]}  Rxg5 {[%clk 0:00:38]} 26. Nf3 {[%clk 0:00:39]}  Rg4 {[%clk 0:00:38]} 27. Ne5 {[%clk 0:00:39]}  Rg5 {[%clk 0:00:34]} 28. Nf7 {[%clk 0:00:36]}  Rg4 {[%clk 0:00:27]} 29. Rh8# {[%clk 0:00:35]} 1-0

[Event "December 19 Early 2023"]
[Site "https://www.chess.com"]
[Date "2023.12.19"]
[Round "9"]
[White "Vargas, Mauricio"]
[Black "Quirke, Jeffrey"]
[Result "0-1"]
[Board "163"]
[TimeControl "180+1"]
[WhiteFideId "4404572"]
[BlackFideId "2013029"]
[WhiteElo "1982"]
[BlackElo "2154"]
[WhiteTeam "COL"]
[BlackTeam "USA"]
[WhiteClock "0:00:30"]
[BlackClock "0:00:16"]

1. e4 {[%clk 0:02:58]}  e6 {[%clk 0:02:59]} 2. f4 {[%clk 0:02:57]}  d5 {[%clk 0:02:59]} 3. e5 {[%clk 0:02:57]}  c5 {[%clk 0:02:57]} 4. Nf3 {[%clk 0:02:58]}  h5 {[%clk 0:02:56]} 5. Bb5+ {[%clk 0:02:53]}  Bd7 {[%clk 0:02:55]} 6. Bxd7+ {[%clk 0:02:50]}  Qxd7 {[%clk 0:02:56]} 7. d3 {[%clk 0:02:50]}  Nh6 {[%clk 0:02:53]} 8. c3 {[%clk 0:02:50]}  Nf5 {[%clk 0:02:52]} 9. O-O {[%clk 0:02:49]}  Nc6 {[%clk 0:02:52]} 10. Na3 {[%clk 0:02:47]}  Be7 {[%clk 0:02:51]} 11. Qe1 {[%clk 0:02:32]}  h4 {[%clk 0:02:47]} 12. Nc2 {[%clk 0:02:26]}  O-O-O {[%clk 0:02:45]} 13. Be3 {[%clk 0:02:25]}  Kb8 {[%clk 0:02:42]} 14. Bf2 {[%clk 0:02:22]}  Rdg8 {[%clk 0:02:34]} 15. Ne3 {[%clk 0:02:22]}  g6 {[%clk 0:02:08]} 16. Ng4 {[%clk 0:02:04]}  h3 {[%clk 0:02:00]} 17. g3 {[%clk 0:02:00]}  d4 {[%clk 0:01:39]} 18. Nf6 {[%clk 0:01:57]}  Bxf6 {[%clk 0:01:38]} 19. exf6 {[%clk 0:01:56]}  Rd8 {[%clk 0:01:21]} 20. Ne5 {[%clk 0:01:43]}  Nxe5 {[%clk 0:01:15]} 21. fxe5 {[%clk 0:01:42]}  dxc3 {[%clk 0:01:00]} 22. bxc3 {[%clk 0:01:31]}  Qxd3 {[%clk 0:00:58]} 23. Bxc5 {[%clk 0:01:17]}  Qd5 {[%clk 0:00:44]} 24. Qf2 {[%clk 0:00:47]}  Nxg3 {[%clk 0:00:21]} 25. Bd6+ {[%clk 0:00:35]}  Rxd6 {[%clk 0:00:17]} 26. exd6 {[%clk 0:00:30]}  Qh1# {[%clk 0:00:16]} 0-1

[Event "December 19 Early 2023"]
[Site "https://www.chess.com"]
[Date "2023.12.19"]
[Round "9"]
[White "Sarkar, Justin"]
[Black "SulfatoFerroso"]
[Result "0-1"]
[Board "168"]
[TimeControl "180+1"]
[WhiteFideId "2010011"]
[WhiteElo "2138"]
[BlackElo "1906"]
[WhiteTeam "USA"]
[WhiteClock "0:00:00"]
[BlackClock "0:00:31"]

1. d4 {[%clk 0:02:40]}  d5 {[%clk 0:02:51]} 2. c4 {[%clk 0:02:40]}  e6 {[%clk 0:02:50]} 3. Nc3 {[%clk 0:02:39]}  Nf6 {[%clk 0:02:47]} 4. Bg5 {[%clk 0:02:38]}  c6 {[%clk 0:02:44]} 5. e3 {[%clk 0:02:36]}  h6 {[%clk 0:02:40]} 6. Bh4 {[%clk 0:02:34]}  Be7 {[%clk 0:02:37]} 7. Qc2 {[%clk 0:02:22]}  Nbd7 {[%clk 0:02:33]} 8. Nf3 {[%clk 0:02:17]}  O-O {[%clk 0:02:30]} 9. Rc1 {[%clk 0:02:15]}  Ne4 {[%clk 0:02:26]} 10. Bxe7 {[%clk 0:02:07]}  Qxe7 {[%clk 0:02:25]} 11. Nxe4 {[%clk 0:02:01]}  dxe4 {[%clk 0:02:21]} 12. Qxe4 {[%clk 0:02:01]}  Qb4+ {[%clk 0:02:18]} 13. Nd2 {[%clk 0:01:59]}  Qxb2 {[%clk 0:02:15]} 14. Qc2 {[%clk 0:01:55]}  Qxc2 {[%clk 0:02:15]} 15. Rxc2 {[%clk 0:01:55]}  e5 {[%clk 0:02:12]} 16. Bd3 {[%clk 0:01:38]}  exd4 {[%clk 0:02:08]} 17. exd4 {[%clk 0:01:37]}  Re8+ {[%clk 0:02:02]} 18. Kd1 {[%clk 0:01:36]}  Nf6 {[%clk 0:01:53]} 19. Nb3 {[%clk 0:01:18]}  Be6 {[%clk 0:01:46]} 20. f3 {[%clk 0:01:08]}  Red8 {[%clk 0:01:41]} 21. Re1 {[%clk 0:01:06]}  a5 {[%clk 0:01:36]} 22. a4 {[%clk 0:00:34]}  b5 {[%clk 0:01:24]} 23. axb5 {[%clk 0:00:33]}  cxb5 {[%clk 0:01:21]} 24. Kd2 {[%clk 0:00:12]}  bxc4 {[%clk 0:01:19]} 25. Bxc4 {[%clk 0:00:12]}  Bxc4 {[%clk 0:01:16]} 26. Rxc4 {[%clk 0:00:11]}  a4 {[%clk 0:01:15]} 27. Nc5 {[%clk 0:00:11]}  a3 {[%clk 0:01:10]} 28. Ra1 {[%clk 0:00:10]}  Nd5 {[%clk 0:01:10]} 29. Nb3 {[%clk 0:00:03]}  Rdb8 {[%clk 0:01:03]} 30. Nc5 {[%clk 0:00:02]}  Rb2+ {[%clk 0:00:59]} 31. Rc2 {[%clk 0:00:02]}  Rb4 {[%clk 0:00:56]} 32. Kd3 {[%clk 0:00:01]}  Nf4+ {[%clk 0:00:32]} 33. Ke3 {[%clk 0:00:00]}  Nd5+ {[%clk 0:00:31]} 0-1

[Event "December 19 Early 2023"]
[Site "https://www.chess.com"]
[Date "2023.12.19"]
[Round "9"]
[White "Floresvillar Gonzalez, Luis Migu"]
[Black "Bushonica"]
[Result "0-1"]
[Board "169"]
[TimeControl "180+1"]
[WhiteFideId "5100542"]
[WhiteElo "2040"]
[BlackElo "1899"]
[WhiteTeam "MEX"]
[WhiteClock "0:00:00"]
[BlackClock "0:00:20"]

1. e4 {[%clk 0:02:52]}  c5 {[%clk 0:02:53]} 2. d4 {[%clk 0:02:49]}  cxd4 {[%clk 0:02:40]} 3. c3 {[%clk 0:02:49]}  dxc3 {[%clk 0:02:39]} 4. Nxc3 {[%clk 0:02:49]}  d6 {[%clk 0:02:39]} 5. Bc4 {[%clk 0:02:48]}  e6 {[%clk 0:02:34]} 6. Nf3 {[%clk 0:02:45]}  Nc6 {[%clk 0:02:33]} 7. O-O {[%clk 0:02:43]}  Be7 {[%clk 0:02:31]} 8. Qe2 {[%clk 0:02:36]}  Nf6 {[%clk 0:02:29]} 9. Rd1 {[%clk 0:02:32]}  Qa5 {[%clk 0:02:23]} 10. Bf4 {[%clk 0:02:26]}  e5 {[%clk 0:02:21]} 11. Bg5 {[%clk 0:02:20]}  Nd4 {[%clk 0:02:11]} 12. Nxd4 {[%clk 0:02:14]}  exd4 {[%clk 0:02:10]} 13. Bxf6 {[%clk 0:02:06]}  Bxf6 {[%clk 0:02:08]} 14. Nd5 {[%clk 0:02:03]}  Be6 {[%clk 0:01:53]} 15. Nxf6+ {[%clk 0:01:44]}  gxf6 {[%clk 0:01:51]} 16. Bxe6 {[%clk 0:01:43]}  fxe6 {[%clk 0:01:51]} 17. Rxd4 {[%clk 0:01:41]}  Ke7 {[%clk 0:01:49]} 18. Rad1 {[%clk 0:01:37]}  Rad8 {[%clk 0:01:48]} 19. b3 {[%clk 0:01:34]}  Rhg8 {[%clk 0:01:45]} 20. g3 {[%clk 0:01:34]}  Qe5 {[%clk 0:01:41]} 21. Qe3 {[%clk 0:01:24]}  Qh5 {[%clk 0:01:35]} 22. R1d2 {[%clk 0:01:18]}  Rg4 {[%clk 0:01:22]} 23. f3 {[%clk 0:01:14]}  Rg7 {[%clk 0:01:17]} 24. f4 {[%clk 0:01:07]}  Qh6 {[%clk 0:01:00]} 25. Rb4 {[%clk 0:00:59]}  b6 {[%clk 0:00:59]} 26. Ra4 {[%clk 0:00:55]}  Rd7 {[%clk 0:00:58]} 27. Qd3 {[%clk 0:00:47]}  Qxf4 {[%clk 0:00:52]} 28. e5 {[%clk 0:00:38]}  Qxe5 {[%clk 0:00:51]} 29. Re2 {[%clk 0:00:33]}  Qc5+ {[%clk 0:00:49]} 30. Kg2 {[%clk 0:00:31]}  Qc6+ {[%clk 0:00:48]} 31. Kg1 {[%clk 0:00:29]}  Qc1+ {[%clk 0:00:43]} 32. Kg2 {[%clk 0:00:28]}  Qg5 {[%clk 0:00:39]} 33. Rae4 {[%clk 0:00:25]}  e5 {[%clk 0:00:35]} 34. Qd5 {[%clk 0:00:18]}  Qf5 {[%clk 0:00:33]} 35. R4e3 {[%clk 0:00:17]}  h5 {[%clk 0:00:31]} 36. Re4 {[%clk 0:00:13]}  Qg5 {[%clk 0:00:27]} 37. Qd3 {[%clk 0:00:12]}  h4 {[%clk 0:00:26]} 38. R4e3 {[%clk 0:00:10]}  f5 {[%clk 0:00:23]} 39. Qd5 {[%clk 0:00:07]}  f4 {[%clk 0:00:22]} 40. Rxe5+ {[%clk 0:00:05]}  dxe5 {[%clk 0:00:21]} 41. Rxe5+ {[%clk 0:00:05]}  Qxe5 {[%clk 0:00:21]} 42. Qxe5+ {[%clk 0:00:04]}  Kd8 {[%clk 0:00:21]} 43. Qb8+ {[%clk 0:00:02]}  Ke7 {[%clk 0:00:21]} 44. Qxf4 {[%clk 0:00:01]}  hxg3 {[%clk 0:00:20]} 45. hxg3 {[%clk 0:00:01]}  Rf7 {[%clk 0:00:20]} 46. Qh4+ {[%clk 0:00:00]}  Kd6 {[%clk 0:00:20]} 0-1

[Event "December 19 Early 2023"]
[Site "https://www.chess.com"]
[Date "2023.12.19"]
[Round "9"]
[White "Saim, Mohamed Ilias"]
[Black "Masterisback04"]
[Result "0-1"]
[Board "170"]
[TimeControl "180+1"]
[WhiteFideId "7900465"]
[WhiteElo "2063"]
[BlackElo "1730"]
[WhiteTeam "ALG"]
[WhiteClock "0:01:54"]
[BlackClock "0:02:13"]

1. d4 {[%clk 0:02:54]}  Nf6 {[%clk 0:02:45]} 2. c4 {[%clk 0:02:51]}  g6 {[%clk 0:02:40]} 3. Nf3 {[%clk 0:02:50]}  Bg7 {[%clk 0:02:36]} 4. e3 {[%clk 0:02:50]}  d6 {[%clk 0:02:34]} 5. Be2 {[%clk 0:02:50]}  O-O {[%clk 0:02:34]} 6. Nc3 {[%clk 0:02:50]}  Nbd7 {[%clk 0:02:30]} 7. O-O {[%clk 0:02:50]}  e5 {[%clk 0:02:30]} 8. Qc2 {[%clk 0:02:50]}  Ne8 {[%clk 0:02:26]} 9. b4 {[%clk 0:02:48]}  f5 {[%clk 0:02:25]} 10. a4 {[%clk 0:02:44]}  Kh8 {[%clk 0:02:23]} 11. c5 {[%clk 0:02:40]}  f4 {[%clk 0:02:16]} 12. b5 {[%clk 0:02:22]}  g5 {[%clk 0:02:15]} 13. Qf5 {[%clk 0:01:54]}  Rxf5 {[%clk 0:02:13]} 0-1